Department Family,Entity,Date,Expense Type,Expense Area,Supplier,Transaction Number,Amount,Description,Supplier Postcode,Supplier Type,Expenditure Type
DWP,ILF,14/07/2014,Other Prepayments,Central,TAS Software,149094,"1,155.75",Accounting software support, NE13 9AA,,Administrative
DWP,ILF,15/07/2014,Other Prepayments,Central,Data Voice & Video Sol,149117,3900,Engineer work for Government Secure Internet, SK1 3TZ,,Administrative
DWP,ILF,29/07/2014,Other Prepayments,Central,BMC Software Distribution BV,149425,2801.52,IT software licence renewal for support service work management system,NL-1118 ZX,,Administrative
DWP,ILF,01/07/2014,Staff Wellbeing,Human Resources,The Wellbeing Centre,148782,854,Counselling service, NG2 6AX.,,Administrative
DWP,ILF,15/07/2014,Staff Wellbeing,Closure,Working Transitions,149118,3240,Career advice,NN4 7JJ,,Administrative
DWP,ILF,09/07/2014,Training courses/Seminars,Human Resources,CIPR Public Relations Centre,148996,540,Professional subscriptions/courses,SW1Y 4JR,,Administrative
DWP,ILF,07/07/2014,Independent Assessor visits,Social Work,Independent Assessor Costs,148882,"2,229.30",Assessment of social care needs and recommendation of ILF funding contribution,0,,Programme
DWP,ILF,07/07/2014,Independent Assessor visits,Social Work,Independent Assessor Costs,148883,2507.4,Assessment of social care needs and recommendation of ILF funding contribution,0,,Programme
DWP,ILF,07/07/2014,Independent Assessor visits,Social Work,Independent Assessor Costs,148884,657.9,Assessment of social care needs and recommendation of ILF funding contribution,0,,Programme
DWP,ILF,07/07/2014,Independent Assessor visits,Social Work,Independent Assessor Costs,148885,726.75,Assessment of social care needs and recommendation of ILF funding contribution,0,,Programme
DWP,ILF,07/07/2014,Independent Assessor visits,Social Work,Independent Assessor Costs,148886,1742.5,Assessment of social care needs and recommendation of ILF funding contribution,0,,Programme
DWP,ILF,07/07/2014,Independent Assessor visits,Social Work,Independent Assessor Costs,148887,997.2,Assessment of social care needs and recommendation of ILF funding contribution,0,,Programme
DWP,ILF,07/07/2014,Independent Assessor visits,Social Work,Independent Assessor Costs,148889,514.84,Assessment of social care needs and recommendation of ILF funding contribution,0,,Programme
DWP,ILF,07/07/2014,Independent Assessor visits,Social Work,Independent Assessor Costs,148890,"1,594.80",Assessment of social care needs and recommendation of ILF funding contribution,0,,Programme
DWP,ILF,07/07/2014,Independent Assessor visits,Social Work,Independent Assessor Costs,148891,3248.55,Assessment of social care needs and recommendation of ILF funding contribution,0,,Programme
DWP,ILF,07/07/2014,Independent Assessor visits,Social Work,Independent Assessor Costs,148892,"1,364.85",Assessment of social care needs and recommendation of ILF funding contribution,0,,Programme
DWP,ILF,07/07/2014,Independent Assessor visits,Social Work,Independent Assessor Costs,148893,"1,213.20",Assessment of social care needs and recommendation of ILF funding contribution,0,,Programme
DWP,ILF,07/07/2014,Independent Assessor visits,Social Work,Independent Assessor Costs,148895,1113.75,Assessment of social care needs and recommendation of ILF funding contribution,0,,Programme
DWP,ILF,07/07/2014,Independent Assessor visits,Social Work,Independent Assessor Costs,148896,1109.7,Assessment of social care needs and recommendation of ILF funding contribution,0,,Programme
DWP,ILF,07/07/2014,Independent Assessor visits,Social Work,Independent Assessor Costs,148897,1727.1,Assessment of social care needs and recommendation of ILF funding contribution,0,,Programme
DWP,ILF,07/07/2014,Independent Assessor visits,Social Work,Independent Assessor Costs,148898,"1,457.75",Assessment of social care needs and recommendation of ILF funding contribution,0,,Programme
DWP,ILF,07/07/2014,Independent Assessor visits,Social Work,Independent Assessor Costs,148899,824.85,Assessment of social care needs and recommendation of ILF funding contribution,0,,Programme
DWP,ILF,07/07/2014,Independent Assessor visits,Social Work,Independent Assessor Costs,148900,2455.35,Assessment of social care needs and recommendation of ILF funding contribution,0,,Programme
DWP,ILF,07/07/2014,Independent Assessor visits,Social Work,Independent Assessor Costs,148901,"1,360.35",Assessment of social care needs and recommendation of ILF funding contribution,0,,Programme
DWP,ILF,07/07/2014,Independent Assessor visits,Social Work,Independent Assessor Costs,148902,"2,052.90",Assessment of social care needs and recommendation of ILF funding contribution,0,,Programme
DWP,ILF,07/07/2014,Independent Assessor visits,Social Work,Independent Assessor Costs,148903,917.1,Assessment of social care needs and recommendation of ILF funding contribution,0,,Programme
DWP,ILF,07/07/2014,Independent Assessor visits,Social Work,Independent Assessor Costs,148904,822.6,Assessment of social care needs and recommendation of ILF funding contribution,0,,Programme
DWP,ILF,07/07/2014,Independent Assessor visits,Social Work,Independent Assessor Costs,148905,"1,586.25",Assessment of social care needs and recommendation of ILF funding contribution,0,,Programme
DWP,ILF,07/07/2014,Independent Assessor visits,Social Work,Independent Assessor Costs,148906,"2,429.10",Assessment of social care needs and recommendation of ILF funding contribution,0,,Programme
DWP,ILF,07/07/2014,Independent Assessor visits,Social Work,Independent Assessor Costs,148906,1706.4,Assessment of social care needs and recommendation of ILF funding contribution,0,,Programme
DWP,ILF,07/07/2014,Independent Assessor visits,Social Work,Independent Assessor Costs,148907,"1,087.65",Assessment of social care needs and recommendation of ILF funding contribution,0,,Programme
DWP,ILF,14/07/2014,Independent Assessor visits,Social Work,Independent Assessor Costs,149051,"2,178.45",Assessment of social care needs and recommendation of ILF funding contribution,0,,Programme
DWP,ILF,14/07/2014,Independent Assessor visits,Social Work,Independent Assessor Costs,149052,"2,664.90",Assessment of social care needs and recommendation of ILF funding contribution,0,,Programme
DWP,ILF,14/07/2014,Independent Assessor visits,Social Work,Independent Assessor Costs,149053,1617.3,Assessment of social care needs and recommendation of ILF funding contribution,0,,Programme
DWP,ILF,14/07/2014,Independent Assessor visits,Social Work,Independent Assessor Costs,149054,1397.7,Assessment of social care needs and recommendation of ILF funding contribution,0,,Programme
DWP,ILF,14/07/2014,Independent Assessor visits,Social Work,Independent Assessor Costs,149056,2106.9,Assessment of social care needs and recommendation of ILF funding contribution,0,,Programme
DWP,ILF,14/07/2014,Independent Assessor visits,Social Work,Independent Assessor Costs,149058,718.2,Assessment of social care needs and recommendation of ILF funding contribution,0,,Programme
DWP,ILF,14/07/2014,Independent Assessor visits,Social Work,Independent Assessor Costs,149060,1035.9,Assessment of social care needs and recommendation of ILF funding contribution,0,,Programme
DWP,ILF,14/07/2014,Independent Assessor visits,Social Work,Independent Assessor Costs,149061,2424.6,Assessment of social care needs and recommendation of ILF funding contribution,0,,Programme
DWP,ILF,14/07/2014,Independent Assessor visits,Social Work,Independent Assessor Costs,149062,"1,959.75",Assessment of social care needs and recommendation of ILF funding contribution,0,,Programme
DWP,ILF,14/07/2014,Independent Assessor visits,Social Work,Independent Assessor Costs,149063,"2,306.70",Assessment of social care needs and recommendation of ILF funding contribution,0,,Programme
DWP,ILF,14/07/2014,Independent Assessor visits,Social Work,Independent Assessor Costs,149064,"1,146.65",Assessment of social care needs and recommendation of ILF funding contribution,0,,Programme
DWP,ILF,14/07/2014,Independent Assessor visits,Social Work,Independent Assessor Costs,149064,"2,563.00",Assessment of social care needs and recommendation of ILF funding contribution,0,,Programme
DWP,ILF,14/07/2014,Independent Assessor visits,Social Work,Independent Assessor Costs,149065,841.05,Assessment of social care needs and recommendation of ILF funding contribution,0,,Programme
DWP,ILF,14/07/2014,Independent Assessor visits,Social Work,Independent Assessor Costs,149066,2182.5,Assessment of social care needs and recommendation of ILF funding contribution,0,,Programme
DWP,ILF,14/07/2014,Independent Assessor visits,Social Work,Independent Assessor Costs,149067,638.1,Assessment of social care needs and recommendation of ILF funding contribution,0,,Programme
DWP,ILF,14/07/2014,Independent Assessor visits,Social Work,Independent Assessor Costs,149068,1676.4,Assessment of social care needs and recommendation of ILF funding contribution,0,,Programme
DWP,ILF,14/07/2014,Independent Assessor visits,Social Work,Independent Assessor Costs,149069,2292.45,Assessment of social care needs and recommendation of ILF funding contribution,0,,Programme
DWP,ILF,21/07/2014,Independent Assessor visits,Social Work,Independent Assessor Costs,149210,"2,479.95",Assessment of social care needs and recommendation of ILF funding contribution,0,,Programme
DWP,ILF,21/07/2014,Independent Assessor visits,Social Work,Independent Assessor Costs,149211,567.9,Assessment of social care needs and recommendation of ILF funding contribution,0,,Programme
DWP,ILF,21/07/2014,Independent Assessor visits,Social Work,Independent Assessor Costs,149214,"2,364.75",Assessment of social care needs and recommendation of ILF funding contribution,0,,Programme
DWP,ILF,21/07/2014,Independent Assessor visits,Social Work,Independent Assessor Costs,149215,935.1,Assessment of social care needs and recommendation of ILF funding contribution,0,,Programme
DWP,ILF,21/07/2014,Independent Assessor visits,Social Work,Independent Assessor Costs,149216,2311.05,Assessment of social care needs and recommendation of ILF funding contribution,0,,Programme
DWP,ILF,21/07/2014,Independent Assessor visits,Social Work,Independent Assessor Costs,149217,2289.4,Assessment of social care needs and recommendation of ILF funding contribution,0,,Programme
DWP,ILF,21/07/2014,Independent Assessor visits,Social Work,Independent Assessor Costs,149217,1662.6,Assessment of social care needs and recommendation of ILF funding contribution,0,,Programme
DWP,ILF,21/07/2014,Independent Assessor visits,Social Work,Independent Assessor Costs,149218,"1,867.95",Assessment of social care needs and recommendation of ILF funding contribution,0,,Programme
DWP,ILF,21/07/2014,Independent Assessor visits,Social Work,Independent Assessor Costs,149219,1367.55,Assessment of social care needs and recommendation of ILF funding contribution,0,,Programme
DWP,ILF,21/07/2014,Independent Assessor visits,Social Work,Independent Assessor Costs,149220,887.8,Assessment of social care needs and recommendation of ILF funding contribution,0,,Programme
DWP,ILF,21/07/2014,Independent Assessor visits,Social Work,Independent Assessor Costs,149221,845.1,Assessment of social care needs and recommendation of ILF funding contribution,0,,Programme
DWP,ILF,21/07/2014,Independent Assessor visits,Social Work,Independent Assessor Costs,149223,500.4,Assessment of social care needs and recommendation of ILF funding contribution,0,,Programme
DWP,ILF,21/07/2014,Independent Assessor visits,Social Work,Independent Assessor Costs,149224,"2,279.70",Assessment of social care needs and recommendation of ILF funding contribution,0,,Programme
DWP,ILF,21/07/2014,Independent Assessor visits,Social Work,Independent Assessor Costs,149224,2849.85,Assessment of social care needs and recommendation of ILF funding contribution,0,,Programme
DWP,ILF,21/07/2014,Independent Assessor visits,Social Work,Independent Assessor Costs,149225,"1,406.70",Assessment of social care needs and recommendation of ILF funding contribution,0,,Programme
DWP,ILF,28/07/2014,Independent Assessor visits,Social Work,Independent Assessor Costs,149333,1002.15,Assessment of social care needs and recommendation of ILF funding contribution,0,,Programme
DWP,ILF,28/07/2014,Independent Assessor visits,Social Work,Independent Assessor Costs,149334,"1,867.95",Assessment of social care needs and recommendation of ILF funding contribution,0,,Programme
DWP,ILF,28/07/2014,Independent Assessor visits,Social Work,Independent Assessor Costs,149335,"2,705.85",Assessment of social care needs and recommendation of ILF funding contribution,0,,Programme
DWP,ILF,28/07/2014,Independent Assessor visits,Social Work,Independent Assessor Costs,149337,"1,993.95",Assessment of social care needs and recommendation of ILF funding contribution,0,,Programme
DWP,ILF,28/07/2014,Independent Assessor visits,Social Work,Independent Assessor Costs,149338,1463.2,Assessment of social care needs and recommendation of ILF funding contribution,0,,Programme
DWP,ILF,28/07/2014,Independent Assessor visits,Social Work,Independent Assessor Costs,149339,648,Assessment of social care needs and recommendation of ILF funding contribution,0,,Programme
DWP,ILF,28/07/2014,Independent Assessor visits,Social Work,Independent Assessor Costs,149340,927.85,Assessment of social care needs and recommendation of ILF funding contribution,0,,Programme
DWP,ILF,28/07/2014,Independent Assessor visits,Social Work,Independent Assessor Costs,149341,1228.05,Assessment of social care needs and recommendation of ILF funding contribution,0,,Programme
DWP,ILF,28/07/2014,Independent Assessor visits,Social Work,Independent Assessor Costs,149342,"1,160.10",Assessment of social care needs and recommendation of ILF funding contribution,0,,Programme
DWP,ILF,28/07/2014,Independent Assessor visits,Social Work,Independent Assessor Costs,149343,"1,053.90",Assessment of social care needs and recommendation of ILF funding contribution,0,,Programme
DWP,ILF,28/07/2014,Independent Assessor visits,Social Work,Independent Assessor Costs,149344,"2,111.85",Assessment of social care needs and recommendation of ILF funding contribution,0,,Programme
DWP,ILF,28/07/2014,Independent Assessor visits,Social Work,Independent Assessor Costs,149346,"2,691.25",Assessment of social care needs and recommendation of ILF funding contribution,0,,Programme
DWP,ILF,28/07/2014,Independent Assessor visits,Social Work,Independent Assessor Costs,149347,1322.6,Assessment of social care needs and recommendation of ILF funding contribution,0,,Programme
DWP,ILF,28/07/2014,Independent Assessor visits,Social Work,Independent Assessor Costs,149348,684.9,Assessment of social care needs and recommendation of ILF funding contribution,0,,Programme
DWP,ILF,28/07/2014,Independent Assessor visits,Social Work,Independent Assessor Costs,149349,1689.3,Assessment of social care needs and recommendation of ILF funding contribution,0,,Programme
DWP,ILF,28/07/2014,Independent Assessor visits,Social Work,Independent Assessor Costs,149350,"1,913.40",Assessment of social care needs and recommendation of ILF funding contribution,0,,Programme
DWP,ILF,28/07/2014,Independent Assessor visits,Social Work,Independent Assessor Costs,149351,1530,Assessment of social care needs and recommendation of ILF funding contribution,0,,Programme
DWP,ILF,28/07/2014,Independent Assessor visits,Social Work,Independent Assessor Costs,149352,"1,105.65",Assessment of social care needs and recommendation of ILF funding contribution,0,,Programme
DWP,ILF,28/07/2014,Independent Assessor visits,Social Work,Independent Assessor Costs,149353,2061.6,Assessment of social care needs and recommendation of ILF funding contribution,0,,Programme
DWP,ILF,28/07/2014,Independent Assessor visits,Social Work,Independent Assessor Costs,149355,994.05,Assessment of social care needs and recommendation of ILF funding contribution,0,,Programme
DWP,ILF,25/07/2014,Utilities,Facilities,DWP,149316,"2,694.17",Business subscription iro Grant Recovery, FY5 3TA,,Administrative
DWP,ILF,15/07/2014,Rates,Facilities,Nottingham City Council,149115,"7,110.00",Rates , NG1 2DE,,Administrative
DWP,ILF,22/07/2014,Rates,Facilities,Nottingham City Council,149265,"1,194.60",Rates , NG1 2DE,,Administrative
DWP,ILF,08/07/2014,Phone Charges,Facilities,EE LTD,148981,641.8,Phone charges,S98 1DX,,Administrative
DWP,ILF,23/07/2014,Postage,Facilities,Royal Mail,149290,"8,000.00",Postal services, PE4 5PG,,Administrative
DWP,ILF,24/07/2014,Postage,Facilities,Royal Mail,149301,2315,Postal services, PE4 5PG,,Administrative
DWP,ILF,09/07/2014,Printing Services,Facilities,Williams Lea,149001,3366,Office Printing,W1F8PR,,Administrative
DWP,ILF,30/07/2014,Business Meeting Costs,Corporate Affairs,Calders,149474,760.3,Hotel bookings,LS16 6RF,,Administrative
DWP,ILF,31/07/2014,Software Licensing,Human Resources,Ceridian Ltd,149495,1635.02,Payroll and HR services, E14 9GE,,Administrative
DWP,ILF,14/07/2014,Software Services,Information & Governance,Dynamic Data Systems Ltd,149092,"9,180.00",Bespoke software development, NG16 1RL,,Administrative
DWP,ILF,15/07/2014,Information Security,Information & Governance,Data Voice & Video Sol,149117,"1,950.00",Engineer work for Government Secure Internet, SK1 3TZ,,Administrative
DWP,ILF,04/07/2014,Website Services,Information & Governance,Vodafone,148880,"10,802.27",Telephone services,RG14 2FN,,Administrative
DWP,ILF,17/07/2014,Equipment Servicing,Information & Governance,Ricoh UK Ltd,149194,965.11,Service Charge for Printing Equipment, TW13 7HG,,Administrative
DWP,ILF,17/07/2014,Equipment Servicing,Information & Governance,Ricoh UK Ltd,149195,923.64,Service Charge for Printing Equipment, TW13 7HG,,Administrative
DWP,ILF,21/07/2014,Misc IT Costs,Information & Governance,XMA Ltd,149248,"1,749.81",Printer Toner Cartidges,NG11 7EP,,Administrative
DWP,ILF,08/07/2014,Legal Costs,Payment Security,Shakespeares,148976,759.04,"Provision of Legal Service iro debt recovery, human resource, procurement or organisational litigation",0,,Administrative
DWP,ILF,08/07/2014,Legal Costs,Payment Security,Shakespeares,148977,759.04,"Provision of Legal Service iro debt recovery, human resource, procurement or organisational litigation",0,,Administrative
DWP,ILF,08/07/2014,Legal Costs,Payment Security,Shakespeares,148979,685.22,"Provision of Legal Service iro debt recovery, human resource, procurement or organisational litigation",0,,Administrative
DWP,ILF,10/07/2014,Legal Costs,Closure,Shakespeares,149022,"5,400.00","Provision of Legal Service iro debt recovery, human resource, procurement or organisational litigation",0,,Administrative
DWP,ILF,09/07/2014,General T&S ,Corporate Affairs,Redfern Travel Ltd,149004,"1,239.29",Travel and Accomodation bookings,BD1 3AZ,,Administrative
